Cogmind - Beta 13 X1 @@@ ROGUE MODE // 2023.09.22 @ 00:38:56 Player: Cracklepappy Result: Destroyed by D-53 Grenadier with Mini Grenade Launcher Performance ------------- Evolutions (0) 0 Regions Visited (2) 400 Robots Destroyed (29) 145 Value Destroyed (670) 670 Prototype IDs (2) 40 Alien Tech Used (0) 0 Bonus (0) 0 TOTAL SCORE: 1255 Bonus ------- None Cogmind --------- Core Integrity 0/250 Matter 300/300 Energy 99/100 System Corruption 0% Temperature Cool (0) Movement Rolling (180) Ox6 Location -10/Mines Parts ------- > --- POWER (1) -------- (None) > --- PROPULSION (2) --- Light Treads Armored Wheel > --- UTILITY (2) ------ Huge Storage Unit Core Shielding > --- WEAPON (2) ------- (None) > --- INVENTORY (25) --- Aluminum Leg Aluminum Leg Aluminum Leg Armored Wheel Armored Wheel Armored Wheel Heat Sink Heat Sink Heat Sink Medium Storage Unit Large Storage Unit High-capacity Storage Unit Medium Battery (150) Medium Matter Pod (100) Shield Generator Shield Generator Shield Generator EM Shotgun Beam Cannon Light Assault Rifle Light Assault Rifle Light Assault Rifle Light Cannon Grenade Launcher Mining Laser Peak State ------------ > --- POWER ------------ Light Nuclear Core > --- PROPULSION ------- Light Treads Armored Wheel > --- UTILITY ---------- Huge Storage Unit Core Shielding > --- WEAPON ----------- EM Shotgun EM Shotgun > --- INVENTORY -------- Aluminum Leg Aluminum Leg Aluminum Leg Wheel Wheel Armored Wheel Armored Wheel Armored Wheel Heat Sink Large Storage Unit High-capacity Storage Unit Shield Generator Shield Generator Shield Generator Shield Generator EM Shotgun EM Shotgun Light Assault Rifle Light Assault Rifle Grenade Launcher Mining Laser [Rating: 15] Favorites ----------- Power Light Nuclear Core Engine Light Ion Engine Power Core Light Nuclear Core Propulsion Light Treads Treads Light Treads Leg Aluminum Leg Wheel Armored Wheel Utility Core Shielding Device Seismic Detector Storage Small Storage Unit Protection Core Shielding Weapon EM Shotgun Energy Gun EM Shotgun Ballistic Gun Light Assault Rifle Launcher Grenade Launcher Build | -11 -10 -10 ------- Run | Jun Mat Min Slots Evolved . | . . . Power . | . . . Propulsion . | . . . Utility . | . . . Weapon . | . . . Parts Attached 36 | 8 27 1 Power 4 | 1 3 . Engine 2 | 1 1 . Core 2 | . 2 . Reactor . | . . . Propulsion 6 | 3 3 . Treads 3 | 2 1 . Leg 1 | . 1 . Wheel 2 | 1 1 . Hover . | . . . Flight . | . . . Utility 9 | 2 7 . Device 1 | 1 . . Storage 7 | 1 6 . Processor . | . . . Hackware . | . . . Protection 1 | . 1 . Artifact . | . . . Weapon 17 | 2 14 1 Energy Gun 7 | . 6 1 Energy Cannon . | . . . Ballistic Gun 8 | 2 6 . Ballistic Cannon . | . . . Launcher 2 | . 2 . Special Weapon . | . . . Impact Weapon . | . . . Slashing Weapon . | . . . Piercing Weapon . | . . . Special Melee Weapon . | . . . Unidentified Prototypes . | . . . Parts Lost 7 | . 3 4 Power 2 | . 1 1 Propulsion 2 | . 2 . Utility . | . . . Weapon 3 | . . 3 Highest Loss Streak 3 | . 2 3 To Critical Strikes . | . . . Average Slot Usage (%) 99 | . 99 98 Engine 4 | . 5 . Core 8 | . 8 14 Treads 15 | . 16 14 Leg 5 | . 6 . Wheel 6 | . 5 14 Device 2 | . 3 . Storage 14 | . 14 14 Protection 11 | . 10 14 Energy Gun 12 | . 10 26 Ballistic Gun 15 | . 17 . Naked Turns . | . . . Heaviest Build 92 | 12 92 92 Greatest Support 40 | 40 40 12 Greatest Overweight (x) 7 | . 7 7 Average Overweight (x) 3 | . 2 6 Largest Inventory Capacity 25 | 8 25 25 Average Capacity 16 | 7 15 25 Most Carried 25 | 8 25 25 Average Carried 14 | 5 13 24 Final Capacity 25 | 8 25 25 Final Carried 25 | 8 25 25 Class Distribution -------------------- 92% | Mutant 7% | Scavenger-Mutant Dominant Class ---------------- Mutant | -10/Materials Mutant | -10/Mines Resources | -11 -10 -10 ----------- Run | Jun Mat Min Matter Collected 878 | 312 547 19 Remotely . | . . . Salvage Created 870 | 121 734 15 Parts 64 | 7 49 8 Haulers Intercepted 2 | . 2 . Recyclers Shooed . | . . . Parts Field Recycled . | . . . Retrieved Matter . | . . . Parts Self-Destructed . | . . . Prevented . | . . . Kills | -11 -10 -10 ------- Run | Jun Mat Min Combat Hostiles Destroyed 20 | . 17 3 Guns 13 | . 13 . AOE 7 | . 4 3 Classes Destroyed 7 | 2 5 . Worker 2 | . 2 . Tunneler 2 | 2 . . Hauler 2 | . 2 . Recycler 1 | 1 . . Watcher 2 | . 2 . Swarmer 6 | . 3 3 Grunt 14 | . 14 . Best Kill Streak 4 | 1 4 3 Combat Bots Only 3 | . 3 3 Max Kills in Single Turn 3 | 1 3 3 Gunslinging . | . . . Exploded 3 | . 2 3 Melee . | . . . Uniques/NPCs Destroyed . | . . . Combat | -11 -10 -10 -------- Run | Jun Mat Min Damage Taken 1232 | . 738 494 Core 261 | . 99 162 Absorbed by Shields . | . . . Redirected to Shielding 33 | . 4 29 Regen/Repaired (Parts) 17 | . 17 . Core Remaining (%) 100 | 100 . . Volleys Fired 87 | 8 77 2 Largest 2 | 2 2 2 Hottest 90 | 40 90 90 Shots Fired 170 | 16 150 4 Gun 166 | 16 146 4 Cannon . | . . . Launcher 4 | . 4 . Special . | . . . Kinetic 160 | 16 144 . Thermal . | . . . Explosive 4 | . 4 . Electromagnetic 6 | . 2 4 Robot Hit Streak 10 | 4 10 . Robot Miss Streak 8 | 2 5 8 Penetration Max . | . . . Secondary Targets . | . . . Shots Hit Robots 111 | 10 101 . Core Hits 54 | 5 45 4 Critical Kills . | . . . Critical Parts Destroyed . | . . . Critical Strikes . | . . . Melee Attacks . | . . . Impact . | . . . Slashing . | . . . Piercing . | . . . Sneak Attacks . | . . . Combat Hostiles . | . . . Follow-up Attacks . | . . . Damage Inflicted 1626 | 106 1302 218 Guns 1123 | 106 1003 14 Cannons . | . . . Explosions 502 | . 298 204 Melee . | . . . Ramming 1 | . 1 . Kinetic 1090 | 106 984 . Thermal 204 | . . 204 Explosive 298 | . 298 . Electromagnetic 33 | . 19 14 Impact . | . . . Slashing . | . . . Piercing . | . . . Highest Corruption . | . . . Average Corruption . | . . . Corruption Purged . | . . . Corruption Blocked . | . . . Overload Shots . | . . . Overflow Damage 8 | . 5 3 Projectiles . | . . . Explosions 8 | . 5 3 Melee . | . . . Knockbacks . | . . . Impact . | . . . Kinetic . | . . . Secondary . | . . . Self-Inflicted Damage 157 | . 36 121 Shots 8 | . 3 5 Rammed 1 | . 1 . Targets Rammed 1 | . 1 . Kicked . | . . . Crushed . | . . . Highest Temperature 96 | . 36 96 Average Temperature 11 | . 6 46 Received Heat Transfer 357 | . 357 . Siege Activations . | . . . Robots Corrupted . | . . . Combat Hostiles . | . . . Parts Fried . | . . . Impact Corruptions . | . . . Robots Melted . | . . . Combat Hostiles . | . . . Parts Melted . | . . . Heat Transferred 250 | . . 250 Parts Sabotaged . | . . . Parts Stolen . | . . . Parts Stripped . | . . . Power Chain Reactions 1 | . . 1 Missiles Intercepted . | . . . Alert | -11 -10 -10 ------- Run | Jun Mat Min Peak Influence 234 | 15 234 169 Initial 9 | . 9 6 Average 81 | 6 77 168 Maximum Alert Level 1 | . 1 . Low Security (%) 94 | 100 93 100 Level 1 5 | . 6 . Level 2 . | . . . Level 3 . | . . . Level 4 . | . . . Level 5 . | . . . High Security . | . . . Max Security . | . . . Squads Dispatched 4 | . 4 . Investigation 3 | . 3 . Extermination . | . . . Reinforcement 1 | . 1 . Assault . | . . . Garrison . | . . . Intercept . | . . . Searches Triggered . | . . . Construction Impeded . | . . . Haulers Reinforced . | . . . Active Scanning Responses . | . . . Cargo Convoy Interrupts . | . . . Stealth | -11 -10 -10 --------- Run | Jun Mat Min Distress Signals 3 | . 3 . Communications Jammed . | . . . Distress Signals . | . . . Times Spotted 35 | . 33 2 Peak Tracking Total 5 | . 5 2 Tactical Retreats . | . . . Traps | -11 -10 -10 ------- Run | Jun Mat Min Traps Triggered 2 | . 2 . Indirectly . | . . . Trap Hack Attempts . | . . . Triggered . | . . . Disarmed . | . . . Reprogrammed . | . . . Reused . | . . . Traps Extracted . | . . . Installed . | . . . Triggered . | . . . Machines | -11 -10 -10 ---------- Run | Jun Mat Min Machines Disabled 5 | . . 5 Max in Single Turn 5 | . . 5 Machines Repaired . | . . . Machines Sabotaged . | . . . Overloaded Fab Kills . | . . . Hacking | -11 -10 -10 --------- Run | Jun Mat Min Machines Accessed 7 | . 7 . Terminals 5 | . 5 . Fabricators . | . . . Repair Stations 1 | . 1 . Recycling Units 1 | . 1 . Scanalyzers . | . . . Garrison Access . | . . . Total Hacks 20 | . 20 . Successful 11 | . 11 . Failed 8 | . 8 . Catastrophic 1 | . 1 . Database Lockouts 1 | . 1 . Manual 4 | . 4 . Terminals 16 | . 16 . Fabricators . | . . . Repair Stations 2 | . 2 . Recycling Units 2 | . 2 . Scanalyzers . | . . . Garrison Access . | . . . Terminal Hacks 8 | . 8 . Part Schematic 1 | . 1 . Prototype ID Bank 1 | . 1 . Emergency Access Points 1 | . 1 . Hauler Manifests 3 | . 3 . Registered Components 1 | . 1 . Zone Layout 1 | . 1 . Fabricator Hacks . | . . . Repair Station Hacks 2 | . 2 . Scan Component 1 | . 1 . Repair 1 | . 1 . Recycling Unit Hacks . | . . . Scanalyzer . | . . . Garrison Access Hacks . | . . . Unauthorized Hacks 1 | . 1 . Terminals . | . . . Fabricators . | . . . Repair Stations . | . . . Recycling Units 1 | . 1 . Tunnel 1 | . 1 . Scanalyzers . | . . . Garrison Access . | . . . Data Cores Recovered . | . . . Used . | . . . Hacking Detections 6 | . 6 . Full Trace Events . | . . . Feedback Events . | . . . Feedback Blocked . | . . . Robot Schematics Acquired . | . . . Robots Built . | . . . Authchips . | . . . Time . | . . . Total Robot Build Rating . | . . . Part Schematics Acquired 1 | . 1 . Parts Built . | . . . Authchips . | . . . Time . | . . . Total Part Build Rating . | . . . Parts Repaired 1 | . 1 . Time 38 | . 38 . Parts Recycled . | . . . Recycled Matter . | . . . Retrieved Matter . | . . . Retrieved Components . | . . . Parts Scanalyzed . | . . . Part Schematics Acquired . | . . . Parts Damaged . | . . . Bothacking | -11 -10 -10 ------------ Run | Jun Mat Min Used RIF Installer . | . . . Robots Hacked . | . . . Non-combat . | . . . Combat . | . . . Robot Hacks Applied . | . . . Relay Couplers Released . | . . . Fabnet Peak Effective % . | . . . Robots Rewired . | . . . Allies Hacked . | . . . Hacks Repelled . | . . . Allies | -11 -10 -10 -------- Run | Jun Mat Min Total Allies . | . . . Largest Group . | . . . Highest-Rated Group . | . . . Highest-Rated Ally . | . . . Total Orders . | . . . Ally Attacks . | . . . Total Damage . | . . . Kills . | . . . Allies Corrupted . | . . . Allies Melted . | . . . Intel | -11 -10 -10 ------- Run | Jun Mat Min Robot Analysis Total . | . . . Derelict Logs Recovered . | . . . Drone Launches . | . . . Drone Recoveries . | . . . Exploration | -11 -10 -10 ------------- Run | Jun Mat Min Turns Passed 2890 | 251 2305 334 Spaces Moved 1362 | 135 1061 166 Core 3 | 3 . . Treads 700 | 128 572 . Legs . | . . . Wheels 659 | 4 489 166 Hover . | . . . Flight . | . . . Fastest Speed 50 | 50 120 180 Average Speed 178 | 155 178 194 Slowest Speed 480 | 160 480 195 Overloaded Moves . | . . . Propulsion Burnouts . | . . . Robots Hopped . | . . . Cave-ins Triggered . | . . . Exploration Rate (%) 50 | 8 99 44 Regions Visited 2 Branch Regions 1 Pre-discovered Areas 1 | . 1 . Known Exits Taken . | . . . Unknown Exits Taken 2 | 1 1 . Scrap Searched . | . . . Spaces Dug . | . . . Terrain Destroyed 42 | . 14 28 Melee . | . . . Projectile . | . . . AOE 42 | . 14 28 Terrain Rammed . | . . . Walls Destroyed . | . . . Machines Disabled . | . . . Actions | -11 -10 -10 --------- Run | Jun Mat Min Total 1669 | 159 1335 175 Wait 131 | . 130 1 Move 1360 | 134 1060 166 Hop . | . . . Pick Up 39 | 9 27 3 Fast Attach 10 | 6 4 . Attach 5 | 1 3 1 Detach . | . . . Swap 21 | 1 20 . Drop 15 | . 13 2 Fire 87 | 8 77 2 Melee . | . . . Ram . | . . . Kick . | . . . Crush 1 | . 1 . Escape Stasis . | . . . Rewire . | . . . Trap . | . . . Miscellaneous . | . . . Route ------- -11/Junkyard -10/Materials (discovered 5 exits: [*Mat x3] / [*Min x2]) -10/Mines (discovered 1 exit: [*Mat]) History --------- Turn | Location | Event 11 | -11/Junkyard | Discovered new exit (range 15) 252 | -11/Junkyard | Entered Materials 310 | -10/Materials | Build established: Mutant 518 | -10/Materials | Discovered new exit (range 13) 758 | -10/Materials | Central database locked down 783 | -10/Materials | Discovered new exit (range 10) 1518 | -10/Materials | Discovered new exit (range 9) 2122 | -10/Materials | Discovered new exit (range 11) 2221 | -10/Materials | Repaired Lgt. Nuclear Core 2398 | -10/Materials | Discovered new exit (range 5) 2557 | -10/Materials | Entered Mines 2770 | -10/Mines | Discovered new exit (range 9) 2871 | -10/Mines | Assembled infested the area 2876 | -10/Mines | Assisted by a Guerilla fighting off Assembled 2884 | -10/Mines | Core integrity fell below 50% 2890 | -10/Mines | Core integrity fell below 20% 2891 | -10/Mines | Destroyed by D-53 Grenadier with Mini Grenade Launcher Last Messages --------------- 02642_ R-06 Scavenger collects Wheel. 02643_ Acquired Med. Matter Pod. 02685_ Dropped Wheel. 02685_ Acquired Med. Storage Unit. 02698_ R-06 Scavenger collects Wheel. 02741_ K-01 Serf collects debris. 02770_ EXIT=FOUND 02871_ ALERT: Infestation in the mines, dispatching Demolisher response squad. 02876_ A derelict emerges from the shadows: "You need to get out of here! I've been tracking a group of Assembled to figure out where they're coming from, and they're closing on this area, come on!" 02877_ 3A-17T(h) destroyed. 02877_ T-07 Excavator destroyed. 02887_ EM Shotgun destroyed. 02889_ U-05 Engineer lays Concrete. 02889_ EM Shotgun destroyed. 02890_ The unstable cave ceiling collapses. 02891_ U-05 Engineer lays Concrete. 02891_ Lgt. Nuclear Core destroyed. Map ----- +----------------------------------------------------+ | ?????????????# #????????????????# ##?? | | ?????????????# ## #???????????????## #?? | | ?????????????# ?# #????????????#### #?? | | ?????????????# ## #???????????## #??? | | ????????????## ##??????????# ##??? | | ???????????## #??????????# """ ##???? | | ??????????## #?????????## """ #????? | | ?????????## ##?##?????## """ #????? | | ????????## #?# #????## #????? | | ???????## ### #????# ##????? | | ???????# ### #????# ##?????? | | ???????# ### #?#### ##??????? | | ???????## ## #?# #?## < ##???????? | | ????????####?# ### #??# #????????? | | ?????????????# ## ####% ##???????? | | ????????????## #???????? | | ????????????# #???????? | | ????????????# ###### ### #???????? | | ????????????# ##????# #?## ##???????? | | ????????????# #?????# #??#######????????? | | ??????????? ###??# #?????????????????? | | ????????? ### ##????????????????? | | ????????# u #dd ###??????????????? | | ????????# % ##?????????????? | | ????????# ] ##????????????? | | ????????## @ ##???????????? | | ?????????##### # #???????????? | | ??????????????# % #???????????? | | ??????????????## % # #???????????? | | ???????????????# a ?# #???????????? | | ???????????????## ???## #???????????? | | ????????????????#???? ##???????????? | | ????????????????????### # ###????????????? | | ??????????????????????# ## ??????????????? | | ??????????????????????# ?# "?????????????? | | ??????????????????????# ?# "?????????????? | | ??????????????????????# ? "?????????????? | | ??????????????????????#??# ????????????? | | ?????????????????????????# ""????????????? | | ?????????????????????????# ""????????????? | | ?????????????????????????# "?????????????? | | ?????????????????????????? ?????????????? | | ?????????????????????????? "?????????????? | | ?????????????????????????? ??????????????? | | ????????????????????????????????????????????? | | ????????????????????????????????????????????? | | ????????????????????????????????????????????? | | ????????????????????????????????????????????? | | | | | +----------------------------------------------------+ Best States ------------- Heat Dissipation 25 Energy Generation 14 Energy Capacity 250 Matter Stores 300 Matter Capacity 300 Sight Range 16 Terrain Scan Density 10 Core Shielding 20 Evasion (%) 40 Recoil Reduction 2 Item Schematics ----------------- Huge Storage Unit | -10/Materials | Hacked Robot Schematics ------------------ None Fabricated ------------ Nothing Alien Tech Used ----------------- None Achievements -------------- None Challenges ------------ None Game ------ Seed StormCouplerScythe Manual? 0 Play Time 00:14:55 Cumulative 569.2 hours Start 2023.09.22 @ 00:25:42 End 2023.09.22 @ 00:38:56 Sessions 1 Manual Loads 0 Difficulty Rogue Special Mode None Game No. 391 Rogue 391 Adventurer 0 Explorer 0 Win Type - Total 18 Types 9/3/2/0/0/1/2/1/0 Lore% 82 Gallery% 90 Achievement% 80 Wizard Run 0 Options --------- ASCII 0 Keyboard 0 Movement Numpad Keybinds 0 Fullscreen 1 Font 24/Terminus Map View 76x50 Tactical HUD 1 Map Filters NONE Filters NONE Steam 1 RUN: c7b63522-fe85-4b8b-b707-24578672b139